fUST/lending_fUST_20250108
["ID","MTS","AMOUNT","RATE_DAILY","PERIOD"]
[348118078,1736333443733,-500.0,0.00020999,3]
[348118080,1736333443743,-500.0,0.00020999,3]
[348118082,1736333443752,-500.0,0.00020999,3]
[348118084,1736333443762,-500.0,0.00020999,3]
[348118086,1736333443772,-500.0,0.00020999,3]
[348118088,1736333443781,-500.0,0.00020999,3]
[348118090,1736333443791,-264.95408571,0.00020999,3]
[348118092,1736333443803,-235.04591429,0.00020999,3]
[348118093,1736333443812,-500.0,0.00020999,3]
[348118094,1736333443821,-500.0,0.00020999,3]
[348118095,1736333443831,-500.0,0.00020999,3]
[348118096,1736333443840,-500.0,0.00020999,3]
[348118097,1736333443849,-500.0,0.00020999,3]
[348118098,1736333443859,-500.0,0.00020999,3]
[348118099,1736333443869,-500.0,0.00020999,3]
[348118102,1736333443879,-500.0,0.00020999,3]
[348118104,1736333443888,-500.0,0.00020999,3]
[348118106,1736333443897,-500.0,0.00020999,3]
[348118108,1736333443907,-500.92640327,0.00020999,3]
[348118110,1736333443916,-505.533981,0.00020999,3]
[348118112,1736333443925,-484.69370165,0.00020999,3]
[348118114,1736333443937,-16.59033321,0.00020999,3]
[348118116,1736333443946,-500.0,0.00020999,3]
[348118118,1736333443955,-112.17966889,0.00020999,3]
[348118120,1736333443967,-387.82033111,0.00020999,3]
[348118122,1736333443977,-500.0,0.00020999,3]
[348118124,1736333443987,-500.0,0.00020999,3]
[348118126,1736333443996,-391.34966889,0.00020999,3]
[348118341,1736333446251,-108.65033111,0.00020999,3]
[348118343,1736333446261,-500.59922735,0.00020999,3]
[348118345,1736333446270,-500.0,0.00020999,3]
[348118347,1736333446280,-500.0,0.00020999,3]
[348118349,1736333446289,-500.0,0.00020999,3]
[348118351,1736333446298,-500.0,0.00020999,3]
[348118353,1736333446308,-500.58044124,0.00020999,3]
[348118355,1736333446317,-248.50089174,0.00020999,3]
[348118357,1736333446329,-251.49910826,0.00020999,3]
[348118359,1736333446338,-500.0,0.00020999,3]
[348118361,1736333446347,-500.0,0.00020999,3]
[348118363,1736333446357,-500.0,0.00020999,3]
[348118365,1736333446366,-500.87686499,0.00020999,3]
[348118367,1736333446375,-500.0,0.00020999,3]
[348118369,1736333446385,-500.0,0.00020999,3]
[348118371,1736333446394,-500.0,0.00020999,3]
[348118373,1736333446403,-500.0,0.00020999,3]
[348118375,1736333446413,-500.0,0.00020999,3]
[348118377,1736333446422,-351.48113516,0.00020999,3]
[348118379,1736333446431,-500.0,0.00020999,3]
[348118381,1736333446440,-500.0,0.00020999,3]
[348118383,1736333446448,-500.0,0.00020999,3]
[348118385,1736333446457,-500.0,0.00020999,3]
[348118387,1736333446466,-500.0,0.00020999,3]
[348118389,1736333446476,-500.0,0.00020999,3]
[348118391,1736333446485,-574.11164743,0.00020999,3]
[348118393,1736333446494,-500.0,0.00020999,3]
[348118395,1736333446503,-500.0,0.00020999,3]
[348118397,1736333446512,-513.01810358,0.00020999,3]
[348118399,1736333446522,-500.0,0.00020999,3]
[348118401,1736333446532,-500.69744651,0.00020999,3]
[348118403,1736333446541,-500.0,0.00020999,3]
[348118405,1736333446551,-500.0,0.00020999,3]
[348118407,1736333446560,-501.25430523,0.00020999,3]
[348118409,1736333446569,-500.0,0.00020999,3]
[348118411,1736333446578,-500.0,0.00020999,3]
[348118413,1736333446587,-500.0,0.00020999,3]
[348118415,1736333446597,-500.0,0.00020999,3]
[348118417,1736333446605,-513.56708994,0.00020999,3]
[348118419,1736333446615,-500.0,0.00020999,3]
[348118421,1736333446624,-500.0,0.00020999,3]
[348118423,1736333446634,-284.93714012,0.00020999,3]
[348118425,1736333446643,-500.0,0.00020999,3]
[348118427,1736333446654,-501.05318593,0.00020999,3]
[348118429,1736333446663,-501.65695056,0.00020999,3]
[348118431,1736333446672,-1003.91593453,0.00020999,3]
[348118433,1736333446681,-500.0,0.00020999,3]
[348118435,1736333446690,-500.0,0.00020999,3]
[348118437,1736333446699,-502.40082946,0.00020999,3]
[348118439,1736333446709,-500.56880614,0.00020999,3]
[348118441,1736333446718,-504.31192415,0.00020999,3]
[348118443,1736333446727,-500.0,0.00020999,3]
[348118445,1736333446736,-500.0,0.00020999,3]
[348118447,1736333446745,-500.74344555,0.00020999,3]
[348118449,1736333446754,-500.0,0.00020999,3]
[348118451,1736333446763,-501.43082241,0.00020999,3]
[348118453,1736333446772,-500.40050615,0.00020999,3]
[348118455,1736333446782,-500.0,0.00020999,2]
[348118457,1736333446792,-500.0,0.00020999,3]
[348118459,1736333446802,-500.0,0.00020999,3]
[348118461,1736333446811,-504.19553901,0.00020999,3]
[348118463,1736333446821,-503.58328906,0.00020999,3]
[348118465,1736333446830,-503.32224277,0.00020999,3]
[348118467,1736333446839,-500.0,0.00020999,3]
[348118469,1736333446849,-501.23443596,0.00020999,3]
[348118471,1736333446858,-508.07935912,0.00020999,3]
[348118473,1736333446868,-500.0,0.00020999,3]
[348118476,1736333446878,-502.73952891,0.00020999,3]
[348118478,1736333446888,-502.10318216,0.00020999,3]
[348118479,1736333446897,-500.96266259,0.00020999,3]
[348118482,1736333446907,-501.00094184,0.00020999,3]
[348118484,1736333446916,-500.0,0.00020999,3]
[348118486,1736333446925,-500.0,0.00020999,3]
[348118487,1736333446934,-500.0,0.00020999,3]
[348118489,1736333446945,-500.0,0.00020999,3]
[348118492,1736333446954,-500.0,0.00020999,3]
[348118493,1736333446964,-500.0,0.00020999,3]
[348118495,1736333446974,-500.0,0.00020999,3]
[348118498,1736333446983,-500.0,0.00020999,3]
[348118500,1736333446993,-500.0,0.00020999,3]
[348118502,1736333447002,-500.0,0.00020999,3]
[348118505,1736333447021,-500.0,0.00020999,3]
[348118507,1736333447031,-500.0,0.00020999,3]
[348118509,1736333447041,-500.0,0.00020999,3]
[348118511,1736333447051,-500.0,0.00020999,3]
[348118513,1736333447060,-500.0,0.00020999,3]
[348118515,1736333447073,-500.63090278,0.00020999,3]
[348118517,1736333447083,-500.0,0.00020999,3]
[348118519,1736333447092,-500.0,0.00020999,3]
[348118521,1736333447101,-500.0,0.00020999,3]
[348118523,1736333447111,-500.0,0.00020999,3]
[348118525,1736333447121,-151.0,0.00020999,2]
[348118527,1736333447130,-174.333238,0.00020999,2]
[348118529,1736333447141,-174.333238,0.00020999,2]
[348118531,1736333447152,-174.333238,0.00021077,2]
[348118533,1736333447161,-174.333238,0.00021077,2]
[348118535,1736333447171,-151.0,0.00021102,2]
[348118537,1736333447180,-151.463292,0.00021115,2]
[348118539,1736333447189,-151.0,0.00021115,2]
[348118541,1736333447199,-500.0,0.00021116,3]
[348118543,1736333447208,-500.0,0.00021116,3]
[348118545,1736333447218,-4647.65,0.00021116,3]
[348118560,1736333447336,-181.81290131,0.00021116,3]
[348118563,1736333447358,-500.0,0.00021116,3]
[348118565,1736333447367,-500.0,0.00021116,3]
[348118567,1736333447376,-500.0,0.00021116,3]
[348118569,1736333447388,-500.0,0.00021116,3]
[348118571,1736333447397,-500.0,0.00021116,3]
[348118573,1736333447406,-500.0,0.00021152,3]
[348118575,1736333447416,-500.0,0.00021183,3]
[348118577,1736333447426,-500.0,0.00021183,3]
[348118579,1736333447435,-500.0,0.00021183,3]
[348118581,1736333447444,-699.32273686,0.00021195,2]
[348118583,1736333447453,-1329.3551013,0.00021212,2]
[348118585,1736333447462,-500.0,0.00021235,3]
[348118587,1736333447471,-500.0,0.00021235,3]
[348118589,1736333447480,-500.0,0.00021235,3]
[348118591,1736333447489,-500.0,0.00021235,3]
[348118593,1736333447498,-500.0,0.00021235,3]
[348118595,1736333447507,-821.15,0.00021235,3]
[348118597,1736333447516,-500.0,0.00021235,2]
[348118599,1736333447527,-500.0,0.00021235,2]
[348118601,1736333447537,-500.0,0.00021235,2]
[348118603,1736333447547,-500.0,0.00021235,2]
[348118605,1736333447556,-500.0,0.00021235,2]
[348118607,1736333447565,-500.0,0.00021235,2]
[348118609,1736333447574,-500.0,0.00021235,2]
[348118611,1736333447583,-500.0,0.00021235,2]
[348118613,1736333447593,-500.0,0.00021235,2]
[348118615,1736333447603,-500.0,0.00021235,2]
[348118617,1736333447612,-500.0,0.00021235,2]
[348118619,1736333447621,-500.0,0.00021235,2]
[348118621,1736333447631,-500.0,0.00021235,2]
[348118623,1736333447642,-500.0,0.00021235,2]
[348118624,1736333447651,-571.58881064,0.00021235,2]
[348118627,1736333447661,-500.0,0.00021235,2]
[348118629,1736333447670,-500.0,0.00021235,2]
[348118631,1736333447680,-500.0,0.00021235,2]
[348118633,1736333447689,-500.0,0.00021235,2]
[348118635,1736333447699,-500.0,0.00021235,2]
[348118637,1736333447708,-400.55452097,0.00021235,2]
[348118638,1736333447717,-500.0,0.00021235,2]
[348118640,1736333447727,-200.0,0.00021235,2]
[348118642,1736333447736,-500.0,0.00021235,2]
[348118645,1736333447747,-500.0,0.00021236,3]
[348118646,1736333447756,-500.0,0.00021236,3]
[348118648,1736333447766,-500.0,0.00021236,3]
[348118650,1736333447775,-500.0,0.00021236,3]
[348118653,1736333447785,-500.0,0.00021236,3]
[348118655,1736333447794,-500.0,0.00021236,3]
[348118656,1736333447803,-500.0,0.00021236,3]
[348118658,1736333447813,-500.0,0.00021236,3]
[348118661,1736333447823,-509.98548726,0.00021236,3]
[348118662,1736333447832,-500.0,0.00021236,3]
[348118665,1736333447842,-500.0,0.00021236,3]
[348118666,1736333447851,-188.0,0.00021236,2]
[348118669,1736333447861,-502.36263926,0.00021236,3]
[348118671,1736333447870,-500.0,0.00021236,3]
[348118672,1736333447879,-504.20735054,0.00021236,3]
[348118674,1736333447890,-500.0,0.00021236,3]
[348118677,1736333447899,-500.0,0.00021236,3]
[348118679,1736333447909,-500.0,0.00021236,3]
[348118680,1736333447918,-508.58202565,0.00021236,3]
[348118683,1736333447928,-500.94779536,0.00021236,3]
[348118685,1736333447937,-500.0,0.00021236,3]
[348118686,1736333447946,-500.0,0.00021236,3]
[348118689,1736333447956,-502.3692792,0.00021236,3]
[348118690,1736333447965,-500.0,0.00021236,3]
[348118693,1736333447975,-500.0,0.00021236,3]
[348118694,1736333447984,-500.0,0.00021236,3]
[348118697,1736333447994,-500.0,0.00021236,3]
[348118698,1736333448003,-588.21291143,0.00021236,3]
[348118700,1736333448013,-500.0,0.00021236,3]
[348118702,1736333448023,-500.0,0.00021236,3]
[348118704,1736333448032,-501.43710337,0.00021236,3]
[348118707,1736333448041,-500.0,0.00021236,3]
[348118709,1736333448051,-501.14286739,0.00021236,3]
[348118711,1736333448060,-500.0,0.00021236,3]
[348118712,1736333448070,-501.58103118,0.00021236,3]
[348118715,1736333448082,-511.88560668,0.00021236,3]
[348118717,1736333448092,-501.02936094,0.00021236,3]
[348118718,1736333448101,-500.0,0.00021236,3]
[348118720,1736333448111,-500.0,0.00021236,3]
[348118722,1736333448121,-500.0,0.00021236,3]
[348118724,1736333448131,-501.54170248,0.00021236,3]
[348118726,1736333448141,-500.0,0.00021236,3]
[348118728,1736333448151,-500.0,0.00021236,3]
[348118730,1736333448160,-346.05653872,0.00021236,3]
[348118732,1736333448170,-500.0,0.00021236,3]
[348118734,1736333448179,-500.0,0.00021236,3]
[348118737,1736333448189,-500.0,0.00021236,3]
[348118739,1736333448198,-500.0,0.00021236,3]
[348118740,1736333448208,-355.22,0.00021236,3]
[348118743,1736333448217,-501.22383814,0.00021236,3]
[348118744,1736333448226,-151.0,0.00021236,2]
[348118746,1736333448236,-151.0,0.00021236,2]
[348118748,1736333448245,-500.0,0.00021236,3]
[348118750,1736333448254,-151.0,0.00021236,2]
[348118753,1736333448264,-151.0,0.00021236,2]
[348118755,1736333448273,-174.333238,0.00021236,2]
[348118757,1736333448283,-174.333238,0.00021236,2]
[348118759,1736333448292,-577.95334422,0.00021237,3]
[348118761,1736333448302,-500.0,0.00021237,2]
[348118763,1736333448311,-501.74987787,0.00021237,3]
[348118765,1736333448320,-500.0,0.00021237,3]
[348118767,1736333448329,-500.0,0.00021237,3]
[348118769,1736333448339,-500.0,0.00021237,3]
[348118771,1736333448349,-500.0,0.00021237,3]
[348118773,1736333448358,-500.0,0.00021237,3]
[348118775,1736333448367,-500.0,0.00021237,3]
[348118776,1736333448377,-501.81731982,0.00021237,3]
[348118778,1736333448386,-500.0,0.00021237,3]
[348118780,1736333448396,-500.0,0.00021237,3]
[348118782,1736333448406,-500.0,0.00021237,3]
[348118785,1736333448416,-500.0,0.00021237,3]
[348118786,1736333448426,-376.3722129,0.00021237,3]
[348118789,1736333448436,-508.32098783,0.00021237,3]
[348118791,1736333448446,-328.627936,0.00021237,2]
[348118793,1736333448455,-500.0,0.00021237,3]
[348118795,1736333448465,-328.627936,0.00021237,2]
[348118797,1736333448474,-151.0,0.00021237,2]
[348118798,1736333448483,-500.0,0.00021237,3]
[348118800,1736333448492,-151.0,0.00021237,2]
[348118803,1736333448502,-191.974457,0.00021237,2]
[348118805,1736333448514,-191.974457,0.00021237,2]
[348118807,1736333448524,-496.60027758,0.00021238,2]
[348118809,1736333448533,-2456.68,0.00021238,3]
[348118811,1736333448543,-500.0,0.00021238,3]
[348118813,1736333448553,-500.0,0.00021238,3]
[348118815,1736333448563,-500.0,0.00021238,3]
[348118817,1736333448574,-500.59406676,0.00021238,3]
[348118819,1736333448585,-1164.58,0.00021239,3]
[348118821,1736333448594,-151.0,0.0002124,2]
[348118823,1736333448604,-151.0,0.0002124,2]
[348118825,1736333448613,-328.627936,0.00021241,2]
[348118827,1736333448623,-328.627936,0.00021241,2]
[348118829,1736333448633,-151.0,0.00021241,2]
[348118831,1736333448644,-151.0,0.00021241,2]
[348118833,1736333448654,-191.974457,0.00021241,2]
[348118835,1736333448663,-191.974457,0.00021241,2]
[348118837,1736333448673,-500.0,0.00021273,3]
[348118839,1736333448683,-500.0,0.00021273,3]
[348118842,1736333448693,-500.0,0.00021273,3]
[348118844,1736333448703,-500.0,0.00021273,3]
[348118846,1736333448713,-500.0,0.00021273,3]
[348118848,1736333448722,-500.0,0.00021273,3]
[348118850,1736333448731,-505.49408059,0.00021273,3]
[348118851,1736333448741,-500.0,0.00021273,3]
[348118853,1736333448750,-504.3225967,0.00021273,3]
[348118855,1736333448760,-500.0,0.00021273,3]
[348118857,1736333448770,-500.0,0.00021273,3]
[348118859,1736333448779,-500.0,0.00021273,3]
[348118862,1736333448789,-500.0,0.00021273,3]
[348118864,1736333448800,-505.39380714,0.00021273,2]
[348118866,1736333448810,-500.0,0.00021273,3]
[348118868,1736333448819,-500.0,0.00021273,3]
[348118870,1736333448828,-500.0,0.00021273,3]
[348118872,1736333448838,-500.0,0.00021273,3]
[348118874,1736333448847,-500.0,0.00021273,3]
[348118876,1736333448856,-500.0,0.00021273,3]
[348118878,1736333448866,-500.0,0.00021329,3]
[348118880,1736333448875,-200.11,0.0002139,3]
[348118882,1736333448884,-4647.65,0.0002139,3]
[348118884,1736333448895,-500.0,0.0002139,3]
[348118886,1736333448901,-500.0,0.0002139,3]
[348118887,1736333448908,-500.0,0.00021413,3]
[348118889,1736333448915,-468.25284136,0.00021426,3]
[348118890,1736333448923,-174.333238,0.00021442,2]
[348118891,1736333448933,-174.333238,0.00021442,2]
[348118892,1736333448940,-500.0,0.00021457,3]
[348118893,1736333448947,-500.0,0.00021457,3]
[348118894,1736333448955,-500.0,0.00021457,3]
[348118895,1736333448964,-500.0,0.00021509,3]
[348118896,1736333448973,-292.910774,0.00021509,2]
[348118897,1736333448983,-292.910774,0.00021509,2]
[348118898,1736333448993,-500.0,0.00021509,3]
[348118899,1736333449003,-500.0,0.00021509,3]
[348118900,1736333449013,-821.15,0.00021509,3]
[348118901,1736333449022,-41422.63124751,0.0002151,4]
[348118902,1736333449031,-42688.67779708,0.0002151,4]
[348118903,1736333449041,-500.0,0.0002151,3]
[348118904,1736333449051,-500.0,0.0002151,3]
[348118905,1736333449060,-500.0,0.0002151,3]
[348118906,1736333449070,-188.63820013,0.0002151,2]
[348118907,1736333449083,-455.69889578,0.0002151,3]
[348118908,1736333449093,-502.05233002,0.0002151,3]
[348118909,1736333449102,-500.0,0.00021511,3]
[348118910,1736333449112,-500.0,0.00021511,3]
[348118911,1736333449121,-500.0,0.00021511,3]
[348118912,1736333449130,-500.0,0.00021511,3]
[348118913,1736333449140,-500.0,0.00021511,3]
[348118914,1736333449149,-500.0,0.00021511,3]
[348118915,1736333449158,-328.627936,0.00021511,2]
[348118916,1736333449168,-328.627936,0.00021511,2]
[348118917,1736333449178,-151.0,0.00021511,2]
[348118918,1736333449187,-197.77284311,0.00021511,3]
[348118919,1736333449196,-151.0,0.00021511,2]
[348118920,1736333449205,-191.974457,0.00021511,2]
[348118921,1736333449215,-191.974457,0.00021511,2]
[348118922,1736333449224,-2456.68,0.00021512,3]
[348118923,1736333449234,-500.0,0.00021512,3]
[348118924,1736333449243,-1164.58,0.00021513,3]
[348118925,1736333449252,-292.910774,0.00021515,2]
[348118926,1736333449261,-292.910774,0.00021515,2]
[348118927,1736333449271,-151.0,0.00021515,2]
[348118928,1736333449280,-151.0,0.00021515,2]
[348118929,1736333449289,-513.03397466,0.0002152,3]
[348118930,1736333449298,-1329.3551013,0.00021526,2]
[348118931,1736333449307,-154.60115535,0.00021547,3]
[348118932,1736333449317,-283.82362091,0.00021547,3]
[348118933,1736333449408,-4647.65,0.00021664,3]
[348118934,1736333449417,-500.0,0.00021664,3]
[348118935,1736333449427,-500.0,0.00021731,3]
[348118936,1736333449436,-196.45028671,0.00021731,3]
[348118937,1736333449446,-500.0,0.00021731,3]
[348118938,1736333449455,-151.0,0.00021747,2]
[348118939,1736333449465,-151.0,0.00021747,2]
[348118940,1736333449475,-264.7411122,0.00021778,2]
[348118941,1736333449484,-500.0,0.00021783,3]
[348118942,1736333449494,-821.15,0.00021783,3]
[348118943,1736333449504,-355.739023,0.00021784,2]
[348118944,1736333449513,-355.739023,0.00021784,2]
[348118945,1736333449524,-151.0,0.00021784,2]
[348118946,1736333449533,-500.0,0.00021785,3]
[348118947,1736333449543,-645.2,0.00021785,3]
[348118948,1736333449552,-500.0,0.00021785,3]
[348118949,1736333449562,-2456.68,0.00021786,3]
[348118950,1736333449571,-500.0,0.00021786,3]
[348118951,1736333449581,-1164.58,0.00021787,3]
[348118952,1736333449590,-1000.0,0.00021788,2]
[348118953,1736333449600,-1000.0,0.00021789,2]
[348118954,1736333449609,-151.0,0.0002179,2]
[348118955,1736333449618,-151.0,0.0002179,2]
[348118956,1736333449628,-355.739023,0.0002179,2]
[348118957,1736333449639,-355.739023,0.0002179,2]
[348118958,1736333449648,-151.0,0.0002179,2]
[348118959,1736333449659,-151.0,0.0002179,2]
[348118960,1736333449669,-151.0,0.000218,2]
[348118961,1736333449679,-151.0,0.000218,2]
[348118962,1736333449689,-151.0,0.000218,2]
[348118963,1736333449698,-151.0,0.000218,2]
[348118964,1736333449708,-400.88412,0.000218,2]
[348118965,1736333449717,-400.88412,0.000218,2]
[348118966,1736333449727,-292.910774,0.00021821,2]
[348118967,1736333449736,-292.910774,0.00021821,2]
[348118968,1736333449746,-174.333238,0.00021821,2]
[348118969,1736333449755,-174.333238,0.00021821,2]
[348118970,1736333449765,-1329.3551013,0.00021839,2]
[348118971,1736333449774,-1000.0,0.00021879,2]
[348118972,1736333449784,-151.0,0.000219,2]
[348118973,1736333449794,-5081.76519532,0.000219,2]
[348118974,1736333449803,-151.0,0.00021909,2]
[348118975,1736333449812,-500.0,0.00021917,2]
[348118976,1736333449823,-500.0,0.00021917,2]
[348118977,1736333449832,-500.0,0.00021917,2]
[348118978,1736333449842,-1000.0,0.00021925,2]
[348118979,1736333449851,-4647.65,0.00021938,3]
[348118980,1736333449861,-289.13,0.00021938,3]
[348118981,1736333449871,-5081.76519505,0.00021969,2]
[348118982,1736333449880,-328.627936,0.00021969,7]
[348118983,1736333449891,-328.627936,0.00021969,7]
[348118984,1736333449900,-151.0,0.00021969,7]
[348118985,1736333449910,-191.974457,0.00021969,7]
[348118987,1736333449920,-191.974457,0.00021969,7]
[348118988,1736333449930,-500.0,0.00021972,3]
[348118989,1736333449940,-151.0,0.00021997,2]
[348118990,1736333449950,-500.0,0.00021997,3]
[348118991,1736333449960,-500.0,0.00021997,3]
[348118992,1736333449970,-500.0,0.00021997,3]
[348118993,1736333449980,-500.0,0.00021997,3]
[348118994,1736333449989,-80000.0,0.00021998,2]
[348118995,1736333449999,-151.0,0.00021998,7]
[348118996,1736333450009,-151.0,0.00021998,7]
[348118997,1736333450019,-151.0,0.00021998,7]
[348118998,1736333450029,-151.0,0.00021998,7]
[348119000,1736333450039,-151.0,0.00021998,7]
[348119001,1736333450049,-151.0,0.00021998,7]
[348119002,1736333450058,-151.0,0.00021998,7]
[348119003,1736333450068,-151.0,0.00021998,7]
[348119004,1736333450081,-167.328493,0.00021998,7]
[348119005,1736333450090,-151.0,0.00021998,7]
[348119006,1736333450100,-151.0,0.00021998,7]
[348119007,1736333450109,-151.0,0.00021998,2]
[348119008,1736333450119,-154.43886,0.00021998,7]
[348119009,1736333450128,-151.0,0.00021998,7]
[348119010,1736333450139,-151.0,0.00021998,7]
[348119011,1736333450150,-151.0,0.00021998,7]
[348119012,1736333450160,-151.0,0.00021998,7]
[348119013,1736333450170,-152.119931,0.00021998,7]
[348119014,1736333450179,-151.0,0.00021998,7]
[348119015,1736333450188,-151.0,0.00021998,7]
[348119016,1736333450198,-151.0,0.00021998,7]
[348119017,1736333450207,-151.0,0.00021998,7]
[348119018,1736333450217,-400.88412,0.00021998,7]
[348119019,1736333450226,-400.88412,0.00021998,7]
[348119020,1736333450236,-151.0,0.00021998,7]
[348119021,1736333450246,-1789.169646,0.00021998,7]
[348119022,1736333450256,-1789.169646,0.00021998,7]
[348119023,1736333450266,-1789.169646,0.00021998,7]
[348119024,1736333450275,-1789.169646,0.00021998,7]
[348119025,1736333450285,-151.0,0.00021998,7]
[348119026,1736333450295,-151.0,0.00021998,7]
[348119027,1736333450306,-292.910774,0.00021998,7]
[348119028,1736333450319,-292.910774,0.00021998,7]
[348119029,1736333450328,-355.739023,0.00021998,7]
[348119030,1736333450338,-355.739023,0.00021998,7]
[348119031,1736333450348,-205.814686,0.00021998,7]
[348119032,1736333450358,-205.814686,0.00021998,7]
[348119033,1736333450368,-151.0,0.00021998,7]
[348119034,1736333450378,-151.0,0.00021998,7]
[348119035,1736333450388,-328.627936,0.00021998,7]
[348119036,1736333450397,-328.627936,0.00021998,7]
[348119037,1736333450407,-151.0,0.00021998,7]
[348119038,1736333450416,-151.0,0.00021998,7]
[348119039,1736333450427,-730.64781359,0.00021998,2]
[348119040,1736333450437,-151.0,0.00021998,7]
[348119041,1736333450448,-151.0,0.00021998,7]
[348119042,1736333450458,-191.974457,0.00021998,7]
[348119043,1736333450467,-191.974457,0.00021998,7]
[348119044,1736333450477,-174.333238,0.00021998,7]
[348119045,1736333450486,-174.333238,0.00021998,7]
[348119046,1736333450496,-500.0,0.00021999,3]
[348119047,1736333450506,-500.0,0.00021999,3]
[348119048,1736333450515,-500.0,0.00021999,3]
[348119049,1736333450525,-500.0,0.00021999,3]
[348119050,1736333450534,-500.0,0.00021999,3]
[348119051,1736333450544,-500.0,0.00021999,3]
[348119052,1736333450553,-500.0,0.00021999,3]
[348119053,1736333450563,-241.37,0.00021999,3]
[348119054,1736333450573,-164517.64428973,0.00022,5]
[348119055,1736333450583,-150.0,0.00022,2]
[348119056,1736333450592,-1668.1857619,0.00022,7]
[348119057,1736333450601,-1792.63807238,0.00022,2]
[348119058,1736333450612,-17510.83266368,0.00022,4]
[348119059,1736333450621,-151.0,0.00022,7]
[348119060,1736333450631,-151.0,0.00022,7]
[348119061,1736333450641,-151.0,0.00022,7]
[348119062,1736333450651,-151.0,0.00022,7]
[348119063,1736333450660,-151.0,0.00022,7]
[348119064,1736333450669,-151.0,0.00022,7]
[348119065,1736333450679,-151.0,0.00022,7]
[348119066,1736333450689,-263.694119,0.00022,7]
[348119067,1736333450698,-151.0,0.00022,7]
[348119068,1736333450707,-151.0,0.00022,7]
[348119069,1736333450716,-151.0,0.00022,7]
[348119070,1736333450726,-151.0,0.00022,7]
[348119071,1736333450735,-151.0,0.00022,2]
[348119072,1736333450745,-151.0,0.00022,7]
[348119073,1736333450754,-151.0,0.00022,7]
[348119074,1736333450764,-151.0,0.00022,7]
[348119075,1736333450773,-151.0,0.00022,7]
[348119076,1736333450783,-151.0,0.00022,7]
[348119077,1736333450792,-272.308039,0.00022,7]
[348119078,1736333450802,-151.0,0.00022,7]
[348119079,1736333450811,-939.84484972,0.00022,2]
[348119080,1736334323991,165.814537,0.00013973,2]
[348119081,1736334433194,-164.037723,0.00018986,2]
[348119082,1736334433218,-164.037723,0.00019178,2]
[348119083,1736334433242,-205.826477,0.00019519,2]
[348119084,1736334433263,-109.76569269,0.000199,2]
[348119085,1736334437119,-709.30721496,0.000199,2]
[348119086,1736334437141,-161.0337573,0.0002,30]
[348119087,1736334437164,-4196.31428212,0.00020087,2]
[348119088,1736334441090,-711.47385488,0.00020087,2]
[348119089,1736334441116,-300.0,0.00020096,2]
[348119090,1736334441136,-565.0,0.00020096,2]
[348119091,1736334441157,-1750.36254592,0.00020097,2]
[348119092,1736334441186,-1955.63745408,0.00020097,2]
[348119093,1736334441209,-500.0,0.0002033,3]
[348119094,1736334441231,-500.0,0.0002033,3]
[348119095,1736334441251,-500.0,0.0002033,3]
[348119096,1736334441273,-500.0,0.0002033,3]